bitfinex/quotes_SOLUSD_20220113
["timestamp","ask_amount","ask_price","bid_price","bid_amount"]
[1642080428032,100.53737833,154.09,154.0,16.8694]
[1642080428233,1.82537833,154.09,154.01,2.596]
[1642080428436,7.82537833,154.09,154.05,9.7348]
[1642080428657,1.82537833,154.09,154.05,9.7348]
[1642080429260,9.7356,154.11,154.05,9.7348]
[1642080429458,8.856,154.11,154.03,9.7368]
[1642080430059,8.856,154.11,154.03,9.9868]
[1642080430357,10.68137833,154.11,154.03,9.9868]
[1642080430758,9.7362,154.1,154.03,9.9868]
[1642080430960,10.2462,154.1,154.03,9.9868]
[1642080431158,16.2462,154.1,154.03,9.9868]
[1642080432961,1.82537833,154.09,154.03,9.9868]
[1642080433365,1.82537833,154.09,154.03,19.3468]
[1642080433562,1.82537833,154.09,154.03,20.53077258]
[1642080433759,1.82537833,154.1,154.03,20.53077258]
[1642080433960,1.82537833,154.1,154.03,26.53077258]
[1642080434162,1.82537833,154.1,154.03,25.3468]
[1642080434360,1.82537833,154.1,154.03,19.3468]
[1642080434560,2.08537833,154.1,154.03,19.3468]
[1642080434961,2.08537833,154.1,154.03,25.3468]
[1642080435261,1.82537833,154.11,154.03,25.3468]
[1642080435560,1.82537833,154.11,154.07,9.734]
[1642080435961,1.82537833,154.11,154.07,9.984]
[1642080436561,7.82537833,154.11,154.07,9.984]
[1642080437162,1.82537833,154.11,154.06,9.7349]
[1642080437363,4.42037833,154.11,154.04,0.25]
[1642080437564,4.67037833,154.11,154.01,32.7014]
[1642080437763,10.93037833,154.11,154.01,32.7014]
[1642080438163,1.82537833,154.09,154.01,0.25]
[1642080438364,11.56237833,154.09,153.99,110.7132]
[1642080438564,18.07237833,154.09,153.99,32.4562]
[1642080439167,1.82537833,154.08,153.99,32.4562]
[1642080439366,14.15897833,154.08,154.01,9.738]
[1642080439565,20.66897833,154.08,154.01,9.738]
[1642080439864,18.07297833,154.08,154.01,9.988]
[1642080440266,1.82537833,154.07,154.01,9.988]
[1642080440467,8.08537833,154.07,154.01,9.988]
[1642080441368,2.08537833,154.07,154.01,9.988]
[1642080441666,6.53147883,154.06,154.01,9.988]
[1642080441865,6.53147883,154.06,153.98,2.596]
[1642080442066,2.597,154.05,153.94,25.5441]
[1642080442266,26.5173,154.05,153.94,22.9471]
[1642080442467,33.0273,154.05,153.94,22.9471]
[1642080443271,9.7406,154.03,153.97,9.7406]
[1642080443471,6.26,154.03,153.97,9.7406]
[1642080443971,6.26,154.03,153.97,9.9906]
[1642080444170,0.26,154.03,153.97,9.9906]
[1642080444467,6.0,154.03,153.97,9.9906]
[1642080444867,6.26,154.03,153.97,9.9906]
[1642080445570,0.26,154.03,153.97,9.9906]
[1642080445773,6.26,154.03,153.97,9.9906]
[1642080446172,16.0006,154.03,153.97,0.25]
[1642080446371,10.0006,154.03,153.97,0.25]
[1642080446576,10.0006,154.03,153.93,0.25]
[1642080446577,25.3506,154.03,153.93,0.25]
[1642080446871,2.597,154.02,153.93,0.25]
[1642080447072,32.9957,154.02,153.9,0.25]
[1642080447272,32.9957,154.02,153.89,4.44879634]
[1642080447477,9.7447,153.98,153.89,4.44879634]
[1642080447672,21.30547191,153.97,153.89,4.44879634]
[1642080448074,27.56547191,153.97,153.89,2.597]
[1642080448374,24.96747191,153.97,153.89,2.597]
[1642080449277,9.745,153.96,153.89,12.3426]
[1642080449472,16.005,153.96,153.89,9.9956]
[1642080450476,16.005,153.96,153.89,9.7456]
[1642080450876,16.005,153.96,153.89,9.9956]
[1642080451279,16.005,153.96,153.88,9.7462]
[1642080451479,2.598,153.95,153.88,9.7462]
[1642080451679,9.7467,153.94,153.88,9.7462]
[1642080451882,9.7467,153.94,153.85,74.8513]
[1642080452080,16.0067,153.94,153.85,2.599]
[1642080452780,16.0067,153.94,153.85,2.849]
[1642080452980,16.2567,153.94,153.87,9.7469]
[1642080453181,16.2567,153.94,153.83,2.599]
[1642080453381,9.7489,153.9,153.83,2.599]
[1642080453583,16.0089,153.9,153.81,2.599]
[1642080453783,16.0089,153.9,153.8,4.45079634]
[1642080454182,16.0089,153.9,153.82,9.75]
[1642080454386,22.8132544,153.9,153.82,9.75]
[1642080455009,16.0089,153.9,153.82,10.0]
[1642080456611,15.7489,153.9,153.82,10.0]
[1642080456813,15.9989,153.9,153.82,9.75]
[1642080457015,2.599,153.89,153.81,9.7507]
[1642080457311,9.7508,153.87,153.81,9.7507]
[1642080457713,15.7508,153.87,153.81,9.7507]
[1642080458113,16.0108,153.87,153.81,9.7507]
[1642080459011,16.0108,153.87,153.81,10.0007]
[1642080459613,6.0,153.87,153.81,10.0007]
[1642080460011,33.4423,153.89,153.81,10.0007]
[1642080460213,33.4423,153.89,153.81,9.7507]
[1642080461015,33.9523,153.89,153.81,9.7507]
[1642080461214,9.7505,153.88,153.81,9.7507]
[1642080461615,16.2605,153.88,153.81,10.0007]
[1642080463318,16.2605,153.88,153.81,9.7507]
[1642080463517,11.6102187,153.87,153.81,9.7507]
[1642080463716,14.2102187,153.87,153.8,9.7514]
[1642080463916,18.8809,153.87,153.8,9.7514]
[1642080464318,16.2809,153.87,153.8,9.7514]
[1642080464516,15.7709,153.87,153.8,9.7514]
[1642080465019,15.7709,153.87,153.8,10.0014]
[1642080466119,16.0309,153.87,153.8,10.0014]
[1642080468521,16.2809,153.87,153.8,10.0014]
[1642080468721,16.0209,153.87,153.8,10.0014]
[1642080470130,16.2809,153.87,153.8,10.0014]
[1642080470323,16.0209,153.87,153.8,10.0014]
[1642080470924,15.7709,153.87,153.8,10.0014]
[1642080471725,16.0309,153.87,153.8,10.0014]
[1642080472025,16.2809,153.87,153.8,0.25]
[1642080472426,16.2809,153.87,153.79,10.002]
[1642080473126,16.2809,153.87,153.79,0.25]
[1642080473527,16.2809,153.87,153.78,9.7526]
[1642080473727,16.2809,153.87,153.77,2.6]
[1642080473728,2.6,153.86,153.77,2.6]
[1642080473928,2.6,153.86,153.75,35.45608381]
[1642080474128,9.7534,153.83,153.75,2.6]
[1642080474528,16.0134,153.83,153.75,2.6]
[1642080475328,16.0134,153.83,153.76,9.7534]
[1642080476530,16.0134,153.83,153.76,10.0034]
[1642080477934,15.7534,153.83,153.76,10.0034]
[1642080478335,6.0,153.83,153.76,10.0034]
[1642080478534,38.2727,153.85,153.76,10.0034]
[1642080478734,28.5206,153.85,153.76,10.0034]
[1642080480034,29.0306,153.85,153.76,10.0034]
[1642080481366,38.7826,153.85,153.76,10.0034]
[1642080481568,38.7826,153.85,153.76,16.0034]
[1642080482267,38.7826,153.85,153.76,9.7534]
[1642080483067,38.5226,153.85,153.76,9.7534]
[1642080483767,38.5426,153.85,153.76,9.7534]
[1642080483968,2.6,153.84,153.76,10.0034]
[1642080484166,12.3526,153.84,153.76,10.0034]
[1642080484369,18.6026,153.84,153.76,10.0034]
[1642080484568,2.6,153.84,153.77,2.6]
[1642080484768,2.6,153.84,153.8,9.7499]
[1642080484968,2.6,153.84,153.8,9.9999]
[1642080485169,2.6,153.84,153.81,1.18717713]
[1642080485373,2.6,153.84,153.81,3.78717713]
[1642080485570,2.6,153.84,153.81,26.38543836]
[1642080485770,2.6,153.84,153.82,9.748]
[1642080485974,2.6,153.84,153.82,9.998]
[1642080486373,5.62780004,153.84,153.82,9.998]
[1642080486572,2.6,153.84,153.82,9.998]
[1642080487573,0.26,153.84,153.82,9.998]
[1642080487976,3.11,153.89,153.82,9.998]
[1642080488173,9.11,153.89,153.82,9.998]
[1642080488777,0.02,153.84,153.82,9.998]
[1642080489075,0.02,153.84,153.82,9.748]
[1642080489475,0.02,153.84,153.81,9.7507]
[1642080490377,6.06000001,153.83,153.81,9.7507]
[1642080490580,0.26,153.83,153.81,9.7507]
[1642080490779,0.26,153.83,153.81,10.0007]
[1642080491176,0.02,153.84,153.81,10.0007]
[1642080492978,0.27,153.89,153.81,10.0007]
[1642080493378,0.02,153.89,153.81,10.0007]
[1642080493579,0.02,153.89,153.81,75.1707]
[1642080493778,0.02,153.89,153.81,16.0007]
[1642080494581,0.02,153.89,153.82,19.50699235]
[1642080494781,0.02,153.89,153.85,9.7478]
[1642080494980,0.02,153.89,153.85,9.9978]
[1642080495685,0.02,153.89,153.85,85.71497713]
[1642080495880,0.02,153.89,153.85,91.97497713]
[1642080496480,0.02,153.89,153.86,2.599]
[1642080496681,1.82537833,153.95,153.88,106.10388989]
[1642080496887,1.82537833,153.95,153.89,67.768]
[1642080497083,1.82537833,153.95,153.89,92.18117713]
[1642080497281,1.82537833,153.95,153.89,92.44117713]
[1642080497482,1.82537833,153.98,153.9,1.18717713]
[1642080497681,1.82537833,153.98,153.91,11.958]
[1642080498082,2.08537833,153.98,153.91,29.39627713]
[1642080498286,2.08537833,153.98,153.91,21.9491]
[1642080498481,0.26,153.98,153.91,21.9491]
[1642080498882,24.31890389,154.02,153.91,21.9491]
[1642080499083,21.72090389,154.02,153.91,21.9491]
[1642080499282,2.597,154.01,153.91,21.9491]
[1642080499483,9.7421,154.0,153.91,19.1011]
[1642080499682,2.598,153.99,153.91,19.1011]
[1642080499882,8.858,154.0,153.91,19.1011]
[1642080500083,8.598,154.0,153.91,19.1011]
[1642080500482,8.848,154.0,153.91,19.1011]
[1642080500684,8.848,154.0,153.91,9.7411]
[1642080500888,8.848,154.0,153.91,9.9911]
[1642080501384,9.7438,153.98,153.91,9.9911]
[1642080501584,2.598,153.97,153.9,9.7449]
[1642080501984,8.598,153.97,153.9,9.7449]
[1642080502183,5.87630075,153.96,153.9,9.7449]
[1642080502583,11.87630075,153.96,153.9,9.7449]
[1642080502985,11.87630075,153.96,153.9,9.9949]
[1642080503387,2.598,154.0,153.9,9.9949]
[1642080503584,9.108,154.0,153.9,9.9949]
[1642080503784,2.848,154.0,153.9,9.9949]
[1642080503985,8.848,154.0,153.9,9.9949]
[1642080504188,9.7434,153.98,153.9,9.9949]
[1642080504589,15.7434,153.98,153.9,9.9949]
[1642080504787,2.598,153.97,153.89,9.7455]
[1642080504987,9.108,153.97,153.89,9.7455]
[1642080506289,9.746,153.94,153.89,9.9955]
[1642080506489,16.006,153.94,153.89,9.9955]
[1642080506892,1.97052999,153.93,153.89,9.9955]
[1642080507091,2.23052999,153.93,153.89,9.9955]
[1642080509321,6.0,153.94,153.89,9.9955]
[1642080509521,2.598,153.94,153.89,9.7455]
[1642080510021,2.598,153.96,153.89,9.9955]
[1642080510222,125.7668,153.98,153.89,32.25107463]
[1642080510421,6.0,153.98,153.89,97.42107463]
[1642080510621,6.0,153.98,153.89,32.25107463]
[1642080510824,8.598,153.99,153.89,32.25107463]
[1642080511022,6.0,153.99,153.89,32.51107463]
[1642080511625,8.598,154.0,153.89,97.68107463]
[1642080511823,18.3403,154.0,153.89,98.86825176]
[1642080512023,18.3403,154.0,153.89,104.86825176]
[1642080512225,2.598,154.0,153.89,104.86825176]
[1642080512624,2.598,154.0,153.89,39.43825176]
[1642080512825,2.598,154.0,153.89,38.25107463]
[1642080513025,8.858,154.0,153.9,2.598]
[1642080513224,12.6002,154.0,153.93,9.7429]
[1642080513424,18.6002,154.0,153.9,2.848]
[1642080513624,18.6002,154.0,153.93,0.25]
[1642080513829,18.6002,154.0,153.9,2.598]
[1642080514225,42.9911,154.0,153.9,2.598]
[1642080514525,43.2411,154.0,153.9,2.598]
[1642080515129,43.2411,154.0,153.88,2.598]
[1642080515331,43.2411,154.0,153.91,9.744]
[1642080515531,43.2411,154.0,153.91,9.994]
[1642080515731,43.2411,154.0,153.88,2.598]
[1642080515930,61.97909521,154.0,153.84,2.598]
[1642080516932,496.06614847,154.0,153.84,2.598]
[1642080517140,1.82537833,153.99,153.85,9.7481]
[1642080517438,9.7482,153.92,153.85,9.7481]
[1642080517636,9.7482,153.92,153.85,9.9981]
[1642080518034,16.0082,153.92,153.85,9.9981]
[1642080518633,16.0082,153.92,153.84,12.3467]
[1642080518836,2.599,153.91,153.84,2.598]
[1642080519032,9.7502,153.88,153.84,2.598]
[1642080519435,10.0102,153.88,153.84,2.598]
[1642080519835,16.0102,153.88,153.84,2.598]
[1642080520036,16.0102,153.88,153.84,2.848]
[1642080520636,6.0,153.88,153.84,2.848]
[1642080520835,2.599,153.91,153.84,0.25]
[1642080521035,6.0,153.91,153.79,9.109]
[1642080521237,6.0,153.91,153.84,9.7488]
[1642080521635,23.3975,153.92,153.84,9.9988]
[1642080522236,9.748,153.91,153.84,9.9988]
[1642080522636,10.008,153.91,153.84,9.9988]
[1642080523237,10.008,153.91,153.84,0.25]
[1642080523735,10.008,153.91,153.83,9.9995]
[1642080523941,12.607,153.91,153.83,9.9995]
[1642080524841,18.607,153.91,153.83,9.9995]
[1642080525036,16.008,153.91,153.83,9.9995]
[1642080525537,15.748,153.91,153.83,9.9995]
[1642080526337,15.748,153.91,153.83,15.9995]
[1642080526938,16.008,153.91,153.83,15.9995]
[1642080529043,16.008,153.91,153.83,9.9995]
[1642080529443,16.008,153.91,153.83,15.9995]
[1642080529842,16.008,153.91,153.83,9.9995]
[1642080530045,16.008,153.91,153.83,15.9995]
[1642080530442,6.0,153.91,153.83,81.1695]
[1642080530642,6.0,153.91,153.83,9.9995]
[1642080530843,6.0,153.92,153.84,67.769]
[1642080531046,20.90728366,153.93,153.86,9.7471]
[1642080531543,15.7475,153.93,153.86,9.9971]
[1642080531747,6.0,153.93,153.86,75.1671]
[1642080531945,8.599,153.94,153.86,75.1671]
[1642080532145,6.0,153.94,153.87,2.599]
[1642080532346,6.0,153.94,153.9,9.745]
[1642080532545,1.82537833,153.97,153.9,30.06870871]
[1642080532746,1.82537833,153.98,153.9,30.06870871]
[1642080532947,1.82537833,153.98,153.91,2.598]
[1642080533347,1.82537833,153.98,153.91,2.848]
[1642080533548,1.82537833,153.98,153.94,9.7414]
[1642080533773,434.08705326,154.0,153.94,9.7414]
[1642080533976,2.597,153.99,153.91,2.848]
[1642080534576,17.39347855,153.98,153.91,2.848]
[1642080534974,17.65347855,153.98,153.91,2.848]
[1642080535377,23.65347855,153.98,153.91,2.848]
[1642080535777,33.39787855,153.98,153.91,12.5924]
[1642080536077,2.598,153.97,153.91,9.9944]
[1642080536477,8.858,153.97,153.91,9.9944]
[1642080537178,18.6024,153.97,153.91,9.9944]
[1642080538579,18.8524,153.97,153.9,9.7451]
[1642080538779,41.7855,153.97,153.9,9.7451]
[1642080540383,41.7855,153.97,153.9,9.9951]
[1642080540782,41.7855,153.97,153.9,0.25]
[1642080541585,41.7855,153.97,153.86,79.8855]
[1642080541783,52.79549521,153.97,153.85,2.598]
[1642080541983,52.79549521,153.97,153.84,11.60009634]
[1642080542186,127.86009521,153.97,153.84,11.60009634]
[1642080543086,127.86009521,153.97,153.84,11.85009634]
[1642080543384,127.86009521,153.97,153.84,14.44909634]
[1642080543585,129.68547354,153.97,153.84,14.44909634]
[1642080543785,129.68547354,153.97,153.84,12.5973]
[1642080545184,129.42547354,153.97,153.84,12.5973]
[1642080548888,127.86009521,153.97,153.84,12.3473]
[1642080549288,178.76267452,153.97,153.84,12.3473]
[1642080550092,188.95405285,153.97,153.84,2.599]
[1642080550489,195.22600255,153.97,153.84,2.599]
[1642080551191,1.82537833,153.94,153.84,2.599]
[1642080551391,9.7514,153.89,153.79,4.45079634]
[1642080551593,8.11834776,153.88,153.79,1.85179634]
[1642080551991,14.36834776,153.88,153.79,1.85179634]
[1642080552494,14.62834776,153.88,153.77,4.45179634]
[1642080552694,23.4616,153.87,153.77,4.45179634]
[1642080553093,29.7216,153.87,153.77,4.45179634]
[1642080553294,9.7518,153.86,153.8,9.7514]
[1642080553593,15.7518,153.86,153.8,10.0014]
[1642080555092,16.0118,153.86,153.8,10.0014]
[1642080555296,6.26,153.86,153.8,10.0014]
[1642080555493,0.26,153.86,153.81,2.6]
[1642080555693,0.26,153.86,153.83,9.7493]
[1642080555895,6.26,153.89,153.83,9.7493]
[1642080556093,15.36,153.91,153.83,0.25]
[1642080556295,6.0,153.89,153.83,0.25]
[1642080556494,9.7497,153.89,153.83,0.25]
[1642080556894,15.7497,153.89,153.83,0.25]
[1642080557094,15.7497,153.89,153.82,0.25]
[1642080557494,16.0097,153.89,153.8,2.849]
[1642080557695,15.7497,153.89,153.8,2.849]
[1642080558299,15.7497,153.89,153.82,9.7502]
[1642080558501,15.7497,153.89,153.82,10.0002]
[1642080559110,16.0097,153.89,153.82,10.0002]
[1642080563034,18.6087,153.89,153.82,10.0002]
[1642080563336,18.6087,153.89,153.82,0.25]
[1642080563534,18.8587,153.89,153.78,4.45079634]
[1642080563934,18.8587,153.89,153.78,2.599]
[1642080564736,18.8587,153.89,153.78,2.849]
[1642080565337,18.8587,153.89,153.8,9.7513]
[1642080565534,18.8587,153.89,153.8,10.0013]
[1642080569040,18.8587,153.89,153.8,0.25]
[1642080569442,18.8587,153.89,153.79,10.002]
[1642080572644,28.2187,153.89,153.79,10.002]
[1642080572943,27.9587,153.89,153.79,10.002]
[1642080574946,28.2187,153.89,153.79,9.752]
[1642080576248,28.2187,153.89,153.78,11.60439634]
[1642080576448,28.2187,153.89,153.78,9.7526]
[1642080577147,30.04407833,153.89,153.78,9.7526]
[1642080577948,30.04407833,153.89,153.78,0.25]
[1642080578151,31.69407354,153.89,153.78,0.25]
[1642080578350,50.93031874,153.88,153.77,12.6032]
[1642080578681,13.15674487,153.84,153.77,12.6032]
[1642080579050,19.41674487,153.84,153.77,12.6032]
[1642080579850,19.15674487,153.84,153.77,12.6032]
[1642080580652,9.40364487,153.84,153.77,12.6032]
[1642080581855,6.0,153.84,153.77,12.6032]
[1642080582056,15.752,153.85,153.77,10.0032]
[1642080582558,16.002,153.85,153.77,10.0032]
[1642080582756,16.262,153.85,153.77,10.0032]
[1642080583156,36.41001884,153.85,153.77,10.0032]
[1642080588288,36.41001884,153.85,153.77,9.7532]
[1642080589088,36.41001884,153.85,153.76,12.3539]
[1642080589289,2.6,153.84,153.76,9.7539]
[1642080589491,9.7547,153.81,153.75,76.36709634]
[1642080589691,9.7547,153.81,153.74,2.6]
[1642080589892,16.0147,153.81,153.74,2.6]
[1642080590290,16.0147,153.81,153.75,9.7547]
[1642080590490,16.0147,153.81,153.75,10.0047]
[1642080590692,6.26,153.81,153.75,10.0047]
[1642080590891,6.0,153.81,153.75,10.0047]
[1642080591094,29.3535,153.83,153.75,10.0047]
[1642080592292,29.3535,153.83,153.78,9.7524]
[1642080592494,6.0,153.83,153.78,10.0024]
[1642080592893,80.6344,153.84,153.78,10.0024]
[1642080593095,6.0,153.84,153.78,10.0024]
[1642080593593,30.4165,153.85,153.78,10.0024]
[1642080593793,30.6765,153.85,153.78,10.0024]
[1642080596498,40.4288,153.85,153.78,10.0024]
[1642080598796,40.4288,153.85,153.76,1.85179634]
[1642080599000,25.4134,153.84,153.77,9.7533]
[1642080599197,9.7537,153.83,153.77,9.7533]
[1642080599697,16.0137,153.83,153.77,9.7533]
[1642080600298,7.71981182,153.82,153.77,0.25]
[1642080600497,20.07421182,153.82,153.76,10.004]
[1642080600699,17.47421182,153.82,153.76,10.004]
[1642080600998,17.47421182,153.82,153.76,9.754]
[1642080602600,2.6,153.81,153.76,9.754]
[1642080603000,8.86,153.81,153.76,9.754]
[1642080603900,6.26,153.81,153.76,10.004]
[1642080604101,10.0146,153.81,153.75,9.7546]
[1642080604303,2.601,153.8,153.73,1.85179634]
[1642080604504,9.111,153.8,153.73,1.85179634]
[1642080605103,26.79790823,153.79,153.73,1.85179634]
[1642080605303,2.601,153.78,153.73,1.85179634]
[1642080605502,2.851,153.78,153.73,1.85179634]
[1642080605802,9.7573,153.77,153.72,1.85179634]
[1642080606002,2.601,153.76,153.72,1.85179634]
[1642080606403,8.851,153.76,153.72,1.85179634]
[1642080606802,16.0078,153.76,153.71,0.38092117]
[1642080607009,44.0,153.74,153.68,3.7029575]
[1642080607203,2.601,153.75,153.68,3.7029575]
[1642080607405,6.0,153.74,153.64,31.0943575]
[1642080607607,0.25,153.76,153.65,2.602]
[1642080607804,0.25,153.76,153.67,9.7597]
[1642080608005,0.25,153.76,153.68,2.602]
[1642080608205,0.25,153.76,153.67,2.602]
[1642080608605,8.852,153.78,153.67,2.602]
[1642080608806,8.852,153.78,153.67,2.852]
[1642080609206,8.602,153.78,153.7,9.7576]
[1642080609405,8.602,153.78,153.71,2.601]
[1642080609406,6.0,153.78,153.71,2.601]
[1642080609607,6.0,153.79,153.71,2.851]
[1642080609806,2.601,153.82,153.72,65.17]
[1642080610006,2.601,153.82,153.73,9.36]
[1642080610206,2.601,153.82,153.73,39.75138318]
[1642080610406,2.601,153.82,153.73,47.45966901]
[1642080610608,2.601,153.82,153.74,10.10620052]
[1642080610810,138.48851425,153.83,153.75,98.36]
[1642080611008,3.64371669,153.89,153.76,89.0]
[1642080611208,3.64371669,153.89,153.77,9.36]
[1642080611408,3.64371669,153.89,153.78,12.3496]
[1642080611608,3.64371669,153.89,153.79,32.53427397]
[1642080611810,3.64371669,153.89,153.8,67.77]
[1642080612008,3.64371669,153.89,153.81,9.36]
[1642080612209,3.64371669,153.89,153.82,2.599]
[1642080612408,3.64371669,153.96,153.84,9.7448]
[1642080612608,3.64371669,153.96,153.85,77.129]
[1642080612810,3.64371669,153.96,153.85,78.32728583]
[1642080613008,3.64371669,153.96,153.85,84.83728583]
[1642080613209,2.73751669,153.96,153.86,18.51659798]
[1642080613409,5.54921481,154.0,153.87,11.958]
[1642080613613,5.54921481,154.0,153.9,9.7424]
[1642080613811,5.54921481,154.05,153.91,9.36]
[1642080614011,5.54921481,154.05,153.92,65.17]
[1642080614210,5.54921481,154.05,153.93,9.36]
[1642080614412,5.54921481,154.05,153.94,21.2455592]
[1642080614614,5.54921481,154.05,153.95,11.957]
[1642080614814,5.54921481,154.05,153.98,9.7362]
[1642080615013,5.54921481,154.05,153.99,11.957]
[1642080615412,2.597,154.11,154.0,65.17]
[1642080615614,9.24869135,154.12,154.01,9.36]
[1642080615814,8.1314427,154.15,154.02,16.86327377]
[1642080616013,5.5354427,154.15,154.03,9.36]
[1642080616220,5.5354427,154.15,154.03,13.15328583]
[1642080616412,5.5354427,154.15,154.03,136.66328583]
[1642080616614,5.5354427,154.15,154.04,7.7955939]
[1642080616813,5.5354427,154.15,154.05,11.955]
[1642080617014,5.5354427,154.15,154.06,65.17]
[1642080617214,2.9989151,154.19,154.07,11.955]
[1642080617421,12.02160985,154.22,154.1,117.0]
[1642080617615,12.02160985,154.22,154.14,0.3060924]
[1642080617814,1.8611574,154.28,154.15,217.954]
[1642080618015,1.8611574,154.28,154.18,117.32280449]
[1642080618216,1.5812128,154.35,154.22,89.0]
[1642080618414,1.5812128,154.35,154.3,9.7123]
[1642080618917,1.5812128,154.35,154.3,9.9623]
[1642080619115,1.5812128,154.35,154.3,10.2223]
[1642080619317,1.5812128,154.35,154.3,9.9623]
[1642080619719,2.591,154.34,154.3,9.9623]
[1642080620320,1.291,154.34,154.3,9.9623]
[1642080620518,2.592,154.34,154.3,9.9623]
[1642080620718,2.592,154.34,154.3,9.7123]
[1642080620919,2.592,154.34,154.3,41.27540854]
[1642080621222,1.5812128,154.35,154.31,1.3]
[1642080621418,1.28e-05,154.35,154.33,9.7108]
[1642080621617,1.28e-05,154.35,154.34,9.36]
[1642080621818,2.591,154.42,154.3,9.36]
[1642080622017,2.591,154.43,154.3,9.61]
[1642080622220,2.591,154.41,154.3,9.61]
[1642080622421,6.0,154.42,154.3,9.61]
[1642080622422,2.591,154.42,154.31,17.75202932]
[1642080622618,7.8509383,154.41,154.34,9.7141]
[1642080622818,2.591,154.4,154.32,9.36]
[1642080623019,8.591,154.4,154.3,9.61]
[1642080623220,8.591,154.4,154.3,9.36]
[1642080623720,8.591,154.4,154.3,19.0761]
[1642080624525,8.591,154.4,154.31,20.23019185]
[1642080624721,2.591,154.44,154.32,9.36]
[1642080625121,2.591,154.44,154.35,9.7119]
[1642080625522,2.591,154.44,154.35,9.9619]
[1642080625923,5.66098088,154.43,154.35,9.9619]
[1642080626222,2.59,154.42,154.32,9.36]
[1642080626423,2.59,154.42,154.31,2.591]
[1642080626622,3.1,154.42,154.31,2.591]
[1642080626824,9.1,154.42,154.31,2.841]
[1642080627527,8.85,154.42,154.31,2.841]
[1642080627723,8.85,154.42,154.32,23.44182455]
[1642080627926,8.59,154.42,154.31,2.841]
[1642080628125,6.0,154.42,154.32,0.25]
[1642080628323,8.591,154.44,154.33,2.591]
[1642080628526,6.0,154.44,154.33,9.87]
[1642080628729,6.0,154.44,154.34,2.59]
[1642080628930,2.59,154.43,154.34,2.59]
[1642080629226,2.59,154.43,154.31,11.95]
[1642080629424,2.59,154.43,154.31,9.36]
[1642080629425,10.49999521,154.43,154.31,9.36]
[1642080629925,10.74999521,154.43,154.31,9.36]
[1642080630128,10.74999521,154.43,154.31,19.0755]
[1642080630129,9.1,154.43,154.31,19.0755]
[1642080630324,8.59,154.43,154.31,19.3255]
[1642080630526,8.84,154.43,154.31,19.3255]
[1642080630729,8.84,154.43,154.31,9.61]
[1642080630926,10.48999521,154.43,154.31,9.36]
[1642080631127,29.56619521,154.43,154.29,2.591]
[1642080631326,29.56619521,154.43,154.23,9.36]
[1642080631529,40.83485868,154.43,154.23,9.36]
[1642080631826,40.83485868,154.43,154.25,19.30187051]
[1642080632026,55.33485868,154.43,154.25,19.30187051]
[1642080632428,55.33485868,154.43,154.25,0.25]
[1642080632633,55.33485868,154.43,154.23,9.61]
[1642080632829,186.47314172,154.43,154.24,2.591]
[1642080633231,186.47314172,154.43,154.22,2.591]
[1642080633430,186.47314172,154.43,154.22,25.58566857]
[1642080633830,178.39014172,154.43,154.22,25.58566857]
[1642080634231,178.39014172,154.43,154.22,25.83566857]